fUST/lending_fUST_20240220
["ID","MTS","AMOUNT","RATE_DAILY","PERIOD"]
[314559946,1708422649987,-500.0,0.00022191,2]
[314559947,1708422649996,-604.35,0.00022191,2]
[314559948,1708422650005,-500.0,0.00022191,2]
[314559949,1708422650014,-4032.93,0.00022191,2]
[314559950,1708422650023,-500.0,0.00022191,2]
[314559951,1708422650033,-1200.37,0.00022191,2]
[314559952,1708422650042,-629.47,0.00022191,2]
[314559953,1708422650051,-500.0,0.00022191,2]
[314559954,1708422650060,-500.0,0.00022191,2]
[314559955,1708422650070,-521.35847684,0.00022191,2]
[314559956,1708422650079,-42403.22,0.00022191,2]
[314559957,1708422650089,-524.23,0.00022191,2]
[314559958,1708422650098,-22194.84072902,0.00022191,2]
[314559963,1708422650299,-5399.90892963,0.00022191,2]
[314559973,1708422650679,-2829.75889917,0.00022191,2]
[314559974,1708422651237,-385.76,0.00020132,3]
[314559975,1708422651415,-3669.47,0.00020132,3]
[314559976,1708422651424,-3139.36485269,0.00021598,2]
[314559977,1708422651434,-500.0,0.00021917,2]
[314559978,1708422651444,-5885.41144218,0.00022191,2]
[314559979,1708422651453,-500.0,0.00022191,2]
[314559980,1708422651462,-4658.72,0.00022191,2]
[314559981,1708422651471,-500.0,0.00022191,2]
[314559982,1708422651480,-500.0,0.00022191,2]
[314559983,1708422651490,-506.2,0.00022191,2]
[314559984,1708422651499,-632.51,0.00022191,2]
[314559985,1708422651508,-500.0,0.00022191,2]
[314559986,1708422651519,-1470.03,0.00022191,2]
[314559987,1708422651529,-500.0,0.00022191,2]
[314559988,1708422651539,-926.55,0.00022191,2]
[314559989,1708422651548,-500.0,0.00022191,2]
[314559990,1708422651559,-500.0,0.00022191,2]
[314559991,1708422651569,-806.25,0.00022191,2]
[314559992,1708422651578,-500.0,0.00022191,2]
[314559993,1708422651588,-500.0,0.00022191,2]
[314559994,1708422651598,-500.0,0.00022191,2]
[314559995,1708422651609,-500.0,0.00022191,2]
[314559996,1708422651619,-500.0,0.00022191,2]
[314559997,1708422651629,-500.0,0.00022191,2]
[314559998,1708422651640,-577.74852444,0.00022191,2]
[314559999,1708422651649,-500.0,0.00022191,2]
[314560000,1708422651658,-500.0,0.00022191,2]
[314560001,1708422651668,-500.0,0.00022191,2]
[314560002,1708422651677,-500.0,0.00022191,2]
[314560003,1708422651687,-500.0,0.00022191,2]
[314560004,1708422651696,-2495.15,0.00022191,2]
[314560005,1708422651705,-645.98,0.00022191,2]
[314560006,1708422651714,-1640.75,0.00022191,2]
[314560007,1708422651724,-500.0,0.00022191,2]
[314560008,1708422651733,-500.0,0.00022191,2]
[314560009,1708422651742,-925.65,0.00022191,2]
[314560010,1708422651752,-500.0,0.00022191,2]
[314560011,1708422651761,-500.0,0.00022191,2]
[314560012,1708422651771,-817.68,0.00022191,2]
[314560013,1708422651780,-500.0,0.00022191,2]
[314560014,1708422651789,-500.0,0.00022191,2]
[314560015,1708422651798,-514.95706502,0.00022191,2]
[314560016,1708422651807,-794.08,0.00022191,2]
[314560017,1708422651817,-524.59,0.00022191,2]
[314560018,1708422651827,-500.0,0.00022191,2]
[314560019,1708422651837,-1320.44,0.00022191,2]
[314560020,1708422651847,-639.19,0.00022191,2]
[314560021,1708422651859,-4806.76,0.00022191,2]
[314560022,1708422651868,-500.0,0.00022191,2]
[314560023,1708422651877,-1241.31,0.00022191,2]
[314560024,1708422651886,-500.0,0.00022191,2]
[314560025,1708422651896,-500.0,0.00022191,2]
[314560026,1708422651905,-500.0,0.00022191,2]
[314560027,1708422651916,-500.0,0.00022191,2]
[314560028,1708422651925,-500.0,0.00022191,2]
[314560029,1708422651934,-500.0,0.00022191,2]
[314560030,1708422651944,-500.0,0.00022191,2]
[314560031,1708422651953,-1626.68,0.00022191,2]
[314560032,1708422651963,-500.0,0.00022191,2]
[314560033,1708422651973,-7282.78,0.00022191,2]
[314560034,1708422651982,-2276.42,0.00022191,2]
[314560035,1708422651993,-500.0,0.00022191,2]
[314560036,1708422652003,-1204.437262,0.00022191,2]
[314560037,1708422652012,-1204.437262,0.00022191,2]
[314560038,1708422652022,-500.0,0.00022191,2]
[314560039,1708422652031,-1204.437262,0.00022191,2]
[314560040,1708422652040,-1204.437262,0.00022191,2]
[314560041,1708422652049,-968.46,0.00022191,2]
[314560042,1708422652059,-656.77,0.00022191,2]
[314560043,1708422652068,-500.0,0.00022191,2]
[314560045,1708422652076,-500.0,0.00022191,2]
[314560046,1708422652085,-500.0,0.00022191,2]
[314560048,1708422652094,-500.0,0.00022191,2]
[314560050,1708422652105,-500.0,0.00022191,2]
[314560051,1708422652114,-500.0,0.00022191,2]
[314560053,1708422652123,-500.0,0.00022191,2]
[314560055,1708422652132,-2857.74,0.00022191,2]
[314560057,1708422652141,-500.0,0.00022191,2]
[314560058,1708422652150,-904.603892,0.00022191,2]
[314560060,1708422652161,-904.603892,0.00022191,2]
[314560061,1708422652170,-22888.68,0.00022191,2]
[314560062,1708422652179,-843.72,0.00022191,2]
[314560064,1708422652188,-904.603892,0.00022191,2]
[314560065,1708422652198,-904.603892,0.00022191,2]
[314560067,1708422652206,-500.0,0.00022191,2]
[314560068,1708422652215,-707.57,0.00022191,2]
[314560070,1708422652225,-500.0,0.00022191,2]
[314560072,1708422652234,-500.0,0.00022191,2]
[314560073,1708422652243,-500.0,0.00022191,2]
[314560075,1708422652252,-160334.07995785,0.00022327,2]
[314560076,1708422652262,-151.0,0.00022327,2]
[314560078,1708422652270,-1204.437262,0.00022327,2]
[314560079,1708422652279,-1204.437262,0.00022327,2]
[314560080,1708422652289,-5000.0,0.00022357,2]
[314560082,1708422652298,-639.32409778,0.00022357,2]
[314560084,1708422652307,-300.0,0.000224,10]
[314560085,1708422652316,-300.0,0.00022433,2]
[314560087,1708422652325,-155.09305583,0.00022465,2]
[314560089,1708422652334,-500.0,0.00022465,2]
[314560090,1708422652344,-500.0,0.00022465,2]
[314560092,1708422652353,-502.19154516,0.00022465,2]
[314560094,1708422652362,-500.0,0.00022465,2]
[314560095,1708422652371,-202.36548848,0.00022465,2]
[314560097,1708422652380,-161.31716123,0.00022465,2]
[314560098,1708422652389,-500.0,0.00022465,2]
[314560100,1708422652399,-500.0,0.00022465,2]
[314560102,1708422652408,-500.0,0.00022465,2]
[314560103,1708422652417,-594.51,0.00022465,2]
[314560105,1708422652426,-500.0,0.00022465,2]
[314560107,1708422652435,-500.0,0.00022465,2]
[314560108,1708422652444,-500.0,0.00022465,2]
[314560110,1708422652454,-500.0,0.00022465,2]
[314560111,1708422652462,-500.0,0.00022465,2]
[314560113,1708422652472,-500.0,0.00022465,2]
[314560115,1708422652480,-151.0,0.00022465,2]
[314560116,1708422652490,-1399.19,0.00022465,2]
[314560118,1708422652499,-500.0,0.00022465,2]
[314560119,1708422652508,-500.0,0.00022465,2]
[314560121,1708422652517,-500.0,0.00022465,2]
[314560122,1708422652526,-500.0,0.00022465,2]
[314560123,1708422652536,-500.0,0.00022465,2]
[314560124,1708422652545,-2804.33,0.00022465,2]
[314560125,1708422652555,-500.0,0.00022465,2]
[314560126,1708422652564,-1648.76,0.00022465,2]
[314560127,1708422652573,-500.0,0.00022465,2]
[314560128,1708422652582,-506.73604209,0.00022465,2]
[314560129,1708422652591,-500.0,0.00022465,2]
[314560130,1708422652600,-477.21577189,0.00022465,2]
[314560131,1708422652610,-711.23,0.00022465,2]
[314560132,1708422652620,-523.21075762,0.00022465,2]
[314560133,1708422652629,-500.0,0.00022465,2]
[314560134,1708422652639,-500.0,0.00022465,2]
[314560135,1708422652648,-500.0,0.00022465,2]
[314560136,1708422652657,-228.96648004,0.00022465,2]
[314560137,1708422652666,-567.37,0.00022465,2]
[314560138,1708422652675,-500.0,0.00022465,2]
[314560139,1708422652685,-500.0,0.00022465,2]
[314560140,1708422652695,-500.0,0.00022465,2]
[314560141,1708422652705,-500.0,0.00022465,2]
[314560142,1708422652715,-500.0,0.00022465,2]
[314560143,1708422652724,-151.0,0.00022465,2]
[314560144,1708422652734,-500.0,0.00022465,2]
[314560145,1708422652743,-500.0,0.00022465,2]
[314560146,1708422652753,-1439.1,0.00022465,2]
[314560147,1708422652762,-592.84,0.00022465,2]
[314560148,1708422652770,-500.0,0.00022465,2]
[314560149,1708422652779,-500.0,0.00022465,2]
[314560150,1708422652788,-502.63,0.00022465,2]
[314560151,1708422652798,-609.48,0.00022465,2]
[314560152,1708422652807,-500.0,0.00022465,2]
[314560153,1708422652816,-369.27477846,0.00022465,2]
[314560154,1708422652826,-525.76,0.00022465,2]
[314560155,1708422652835,-500.0,0.00022465,2]
[314560156,1708422652844,-500.0,0.00022465,2]
[314560157,1708422652853,-500.0,0.00022465,2]
[314560158,1708422652862,-1385.61,0.00022465,2]
[314560159,1708422652871,-500.0,0.00022465,2]
[314560160,1708422652881,-1214.71,0.00022465,2]
[314560161,1708422652890,-500.0,0.00022465,2]
[314560162,1708422652901,-500.0,0.00022465,2]
[314560163,1708422652911,-500.0,0.00022465,2]
[314560164,1708422652922,-500.0,0.00022465,2]
[314560165,1708422652931,-284.39594045,0.00022465,2]
[314560166,1708422652940,-500.0,0.00022465,2]
[314560167,1708422652950,-561.64,0.00022465,2]
[314560168,1708422652959,-500.0,0.00022465,2]
[314560169,1708422652968,-500.0,0.00022465,2]
[314560170,1708422652978,-500.0,0.00022465,2]
[314560171,1708422652987,-500.0,0.00022465,2]
[314560172,1708422652997,-673.42,0.00022465,2]
[314560173,1708422653007,-548.59346291,0.00022465,2]
[314560174,1708422653016,-509.03,0.00022465,2]
[314560175,1708422653025,-181.4146153,0.00022465,2]
[314560176,1708422653034,-186.81245051,0.00022465,2]
[314560177,1708422653043,-500.0,0.00022465,2]
[314560178,1708422653053,-500.0,0.00022465,2]
[314560179,1708422653062,-1563.93,0.00022465,2]
[314560180,1708422653071,-196.558278,0.00022465,2]
[314560181,1708422653080,-196.558278,0.00022465,2]
[314560182,1708422653089,-761.1,0.00022465,2]
[314560183,1708422653098,-500.0,0.00022465,2]
[314560184,1708422653110,-196.558278,0.00022465,2]
[314560185,1708422653119,-196.558278,0.00022465,2]
[314560186,1708422653128,-27.22294787,0.00022465,2]
[314560187,1708422653143,-472.77705213,0.00022465,2]
[314560188,1708422653153,-660.66,0.00022465,2]
[314560189,1708422653162,-500.0,0.00022465,2]
[314560190,1708422653171,-2996.96299187,0.00022465,2]
[314560191,1708422653570,-15352.48482012,0.00021597,2]
[314560192,1708422653580,-500.0,0.00021917,2]
[314560193,1708422653590,-3139.36485262,0.00022292,2]
[314560194,1708422653599,-2336.06700813,0.00022465,2]
[314560195,1708422653610,-500.0,0.00022465,2]
[314560196,1708422653619,-500.0,0.00022465,2]
[314560197,1708422653628,-608.46,0.00022465,2]
[314560198,1708422653637,-500.0,0.00022465,2]
[314560199,1708422653647,-500.0,0.00022465,2]
[314560200,1708422653656,-500.0,0.00022465,2]
[314560201,1708422653665,-500.0,0.00022465,2]
[314560202,1708422653674,-500.0,0.00022465,2]
[314560203,1708422653684,-500.0,0.00022465,2]
[314560204,1708422653694,-151.0,0.00022465,2]
[314560205,1708422653703,-500.0,0.00022465,2]
[314560206,1708422653712,-661.05,0.00022465,2]
[314560207,1708422653721,-500.0,0.00022465,2]
[314560208,1708422653730,-472.84921277,0.00022465,2]
[314560209,1708422653742,-527.15078723,0.00022465,2]
[314560210,1708422653751,-500.0,0.00022465,2]
[314560211,1708422653761,-500.0,0.00022465,2]
[314560212,1708422653770,-500.0,0.00022465,2]
[314560213,1708422653779,-489.41836535,0.00022465,2]
[314560223,1708423269653,2320.2060685,0.00018132,2]
[314560224,1708423280538,1356.596401,0.00018132,2]
[314560230,1708423489215,24900.0,0.00018132,2]
[314560233,1708423621236,1648.7852782,0.00018482,2]
[314560275,1708423834652,-282.5454315,0.00018538,2]
[314560277,1708423834664,-680.57379999,0.00018538,2]
[314560330,1708423838243,-8073.15820211,0.00018538,2]
[314560331,1708423838253,-250.0,0.00018538,2]
[314560332,1708423838266,-2523.9528131,0.00018582,2]
[314560333,1708423838275,-364.755319,0.00018611,2]
[314560334,1708423838285,-162.78742756,0.00018875,2]
[314560335,1708423838295,-216.1578123,0.00018979,2]
[314560336,1708423838305,-168.976061,0.00019178,2]
[314560337,1708423838317,-930.87329595,0.0002,2]
[314560339,1708423838326,-155.08840039,0.0002,2]
[314560341,1708423838335,-162.78742755,0.0002008,2]
[314560342,1708423838346,-1218.50103834,0.00020091,2]
[314560343,1708423838357,-3091.31286055,0.00020091,2]
[314560345,1708423838367,-230.42,0.0002017,3]
[314560346,1708423838376,-691.28,0.0002017,3]
[314560347,1708423838387,-75012.0952737,0.0002018,2]
[314560348,1708423838397,-5000.0,0.0002018,2]
[314560349,1708423838406,-5349.28096506,0.0002018,2]
[314560351,1708423838416,-626.45139789,0.0002018,2]
[314560353,1708423838425,-5000.0,0.0002018,2]
[314560354,1708423838435,-43369.04592037,0.0002018,2]
[314560355,1708423838444,-1001.90919056,0.00020622,2]
[314560356,1708423838453,-1001.90919056,0.00020647,2]
[314560357,1708423838462,-1001.90919056,0.00020672,2]
[314560358,1708423838471,-1001.90919056,0.00020697,2]
[314560359,1708423838481,-276000.0,0.00020722,2]
[314560360,1708423838490,-15279.8645101,0.00020722,2]
[314560361,1708423838499,-1001.90919056,0.00020722,2]
[314560362,1708423838509,-2511.49188215,0.00020722,2]
[314560363,1708423838518,-274.61037139,0.0002082,2]
[314560364,1708423838527,-309.87604958,0.0002082,2]
[314560365,1708423838537,-776.14825599,0.0002082,2]
[314560366,1708423838546,-282.03166312,0.0002082,2]
[314560367,1708423838555,-181.0279602,0.00020821,2]
[314560368,1708423838564,-1388.985169,0.00020821,2]
[314560369,1708423838573,-500.0,0.00020822,2]
[314560370,1708423838583,-500.0,0.00020822,2]
[314560371,1708423838592,-500.0,0.00020822,2]
[314560372,1708423838601,-500.0,0.00020822,2]
[314560373,1708423838611,-500.0,0.00020822,2]
[314560374,1708423838620,-500.0,0.00020822,2]
[314560375,1708423838629,-500.0,0.00020822,2]
[314560377,1708423838638,-500.0,0.00020822,2]
[314560379,1708423838647,-427.58528838,0.00020822,2]
[314560380,1708423838658,-1170068.12526515,0.00020822,2]
[314560387,1708423838814,-4505.55811189,0.00020822,2]
[314560388,1708423838826,-974.09498087,0.00020822,2]
[314560389,1708423838837,-2019.0862504,0.00020822,2]
[314560407,1708423841416,-1628.42297448,0.00020822,2]
[314560490,1708423846303,-5430.86,0.00020812,3]
[314560492,1708423846314,-556.26,0.00020812,3]
[314560494,1708423846325,-21270.95727031,0.00020822,2]
[314560524,1708424548542,151.07402627,0.00023175,120]
[314560525,1708424560212,161.0995351,0.00018252,2]
[314560526,1708424725730,250.0,0.00018085,2]
[314560530,1708424888667,1062.730228,0.00018095,2]
[314560583,1708424955269,270.2898235,0.00018072,2]
[314560591,1708425017349,24900.0,0.00018095,2]
[314560592,1708425019017,1555.8804134,0.00018317,2]
[314560593,1708425019051,709.6390415,0.00018317,2]
[314560849,1708425038483,-419.27218616,0.00018516,2]
[314560850,1708425038496,-925.537554,0.00018517,2]
[314560851,1708425038505,-258.0,0.00018625,2]
[314560852,1708425038515,-218.04889264,0.00018646,2]
[314560853,1708425038525,-812.33402556,0.000189,2]
[314560854,1708425038534,-170.6686297,0.00019178,2]
[314560855,1708425038543,-179.989503,0.00019178,2]
[314560856,1708425038552,-168.976061,0.00019178,2]
[314560857,1708425038562,-218.04889264,0.0001952,2]
[314560858,1708425038572,-4525.72,0.0002017,3]
[314560859,1708425038582,-3771.43,0.0002017,3]
[314560860,1708425038591,-3142.86,0.0002017,3]
[314560861,1708425038603,-5000.0,0.0002018,2]
[314560862,1708425038612,-15658.86628749,0.0002018,2]
[314560863,1708425038624,-7410.06394196,0.0002018,2]
[314560864,1708425038633,-5000.0,0.0002018,2]
[314560865,1708425038643,-11870.90733212,0.0002018,2]
[314560866,1708425038653,-5000.0,0.0002018,2]
[314560867,1708425038663,-19174.52318074,0.0002018,2]
[314560868,1708425038672,-218.04889264,0.00020393,2]
[314560869,1708425038682,-230.42,0.00020612,3]
[314560870,1708425038693,-1001.90919056,0.00020622,2]
[314560871,1708425038704,-1001.90919056,0.00020647,2]
[314560872,1708425038713,-1001.90919056,0.00020672,2]
[314560873,1708425038723,-1001.90919056,0.00020697,2]
[314560874,1708425038732,-691.28,0.00020712,3]
[314560875,1708425038744,-276000.0,0.00020722,2]
[314560876,1708425038753,-1001.90919056,0.00020722,2]
[314560877,1708425038763,-2511.49188215,0.00020722,2]
[314560878,1708425038772,-181.0279602,0.0002082,2]
[314560879,1708425038781,-282.03166312,0.00020821,2]
[314560880,1708425038791,-309.87604958,0.00020821,2]
[314560881,1708425038800,-776.14825599,0.00020821,2]
[314560882,1708425038810,-274.61037139,0.00020821,2]
[314560883,1708425038820,-1388.985169,0.00020821,2]
[314560884,1708425038830,-1239989.153241,0.00020822,2]
[314560885,1708425038901,-32657.40683597,0.00020822,2]
[314560890,1708425041663,-2619.05,0.0002017,3]
[314560891,1708425041672,-2519.07362829,0.00020822,2]
[314560892,1708425041685,-1781.91419748,0.00020822,2]
[314560921,1708425043470,-1795.36742656,0.00020822,2]
[314561175,1708425046470,-25183.04095925,0.00020822,2]
[314561176,1708425046545,-11467.81188729,0.00020822,2]
[314561178,1708425046560,-500.0,0.00020822,2]
[314561216,1708425598464,5000.0,0.00018733,2]
[314561217,1708426031290,723.581127,0.00018448,2]
[314561220,1708426116124,23566.7798315,0.000185,2]
[314561274,1708426232643,-250.0,0.00018264,2]
[314561276,1708426232652,-1239.75607249,0.00018437,2]
[314561278,1708426232662,-364.755319,0.00018438,2]
[314561280,1708426232671,-602.9335033,0.000185,2]
[314561282,1708426232682,-730.2866652,0.000185,2]
[314561284,1708426232692,-162.78742756,0.00018522,2]
[314561286,1708426232701,-98.04877122,0.00018899,2]
[314561288,1708426232712,-1491.85845849,0.00018899,2]
[314561290,1708426232721,-2193.62036613,0.000189,2]
[314561292,1708426232732,-216.1578123,0.00018972,2]
[314561293,1708426232741,-169.599211,0.00019178,2]
[314561296,1708426232752,-172.152563,0.00019178,2]
[314561298,1708426232761,-218.04889264,0.00019661,2]
[314561299,1708426232770,-1001.90919056,0.000199,2]
[314561301,1708426232779,-162.78742755,0.000199,2]
[314561303,1708426232789,-230.42,0.0001999,3]
[314561305,1708426232798,-691.28,0.0001999,3]
[314561306,1708426232807,-4601.04,0.0001999,3]
[314561308,1708426232816,-3834.2,0.0001999,3]
[314561310,1708426232825,-3195.16,0.0001999,3]
[314561311,1708426232835,-50000.0,0.0002,2]
[314561313,1708426232843,-19250.63821986,0.0002,2]
[314561421,1708426238635,-2860.45546306,0.0002,2]
[314561423,1708426238646,-2209.86790146,0.0002,2]
[314561426,1708426238658,-4159.21129003,0.0002,2]
[314561428,1708426238669,-38283.82712559,0.0002,2]
[314561430,1708426238678,-265.69885131,0.0002,2]
[314561432,1708426238687,-1001.90919056,0.00020105,2]
[314561434,1708426238696,-187.93541938,0.0002018,2]
[314561436,1708426238705,-5000.0,0.0002018,2]
[314561438,1708426238714,-5000.0,0.0002018,2]
[314561440,1708426238723,-50000.0,0.0002018,2]
[314561442,1708426238733,-50000.0,0.0002018,2]
[314561444,1708426238743,-50000.0,0.0002018,2]
[314561446,1708426238752,-93604.17035669,0.0002018,2]
[314561448,1708426238761,-5000.0,0.0002018,2]
[314561450,1708426238770,-3325.94513115,0.0002018,2]
[314561452,1708426238779,-5000.0,0.0002018,2]
[314561453,1708426238789,-3415.52732623,0.0002018,2]
[314561455,1708426238799,-1001.90919056,0.0002031,2]
[314561457,1708426238808,-1001.90919056,0.00020515,2]
[314561459,1708426238818,-218.04889264,0.00020522,2]
[314561461,1708426238828,-2511.49188215,0.00020622,2]
[314561463,1708426238837,-1001.90919056,0.0002072,2]
[314561465,1708426238846,-925.537554,0.00020721,2]
[314561467,1708426238855,-1517.39567223,0.00020721,2]
[314561468,1708426238865,-276000.0,0.00020722,2]
[314561469,1708426238874,-15279.8645101,0.00020722,2]
[314561471,1708426238883,-274.61037139,0.0002082,2]
[314561473,1708426238892,-282.03166312,0.0002082,2]
[314561475,1708426238902,-776.14825599,0.0002082,2]
[314561477,1708426238911,-309.87604958,0.0002082,2]
[314561480,1708426238923,-181.0279602,0.0002082,2]
[314561482,1708426238932,-764.99378759,0.0002082,2]
[314561484,1708426238941,-212.9635654,0.00020821,2]
[314561486,1708426238951,-1329736.77267107,0.00020822,2]
[314561768,1708426241921,-917.748084,0.0002017,3]
[314561770,1708426241933,-1744.891916,0.0002017,3]
[314561772,1708426241942,-12079.89635524,0.00020822,2]
[314562192,1708426246722,-29462.2097959,0.00020822,2]
[314562834,1708426369694,5739.02597373,0.00030289,120]
[314562835,1708426412129,4453.0,0.0003,120]
[314562848,1708427182989,-213.04130257,0.00018427,2]
[314562849,1708427183019,-258.0,0.00018427,2]
[314562850,1708427183049,-24900.0,0.00018428,2]
[314562851,1708427183080,-361.790563,0.00018586,2]
[314562852,1708427183109,-2523.9528131,0.00018589,2]
[314562853,1708427183138,-250.0,0.00018684,2]
[314562854,1708427183168,-1462.41357742,0.000189,2]
[314562855,1708427183197,-30.80174391,0.00019415,2]
[314562856,1708427193222,-149.18775909,0.00019415,2]
[314562857,1708427193251,-930.87329595,0.0002,2]
[314562861,1708427279755,250.0,0.0001918,2]
[314563025,1708427440293,-281.18949915,0.00020079,2]
[314563027,1708427440307,-801.52735248,0.0002008,2]
[314563029,1708427440316,-460.84,0.0002017,3]
[314563031,1708427440325,-4248.95,0.0002017,3]
[314563033,1708427440335,-2458.89,0.0002017,3]
[314563035,1708427440344,-3980.77,0.0002017,3]
[314563037,1708427440354,-3317.31,0.0002017,3]
[314563039,1708427440363,-212.88582823,0.00020178,2]
[314563040,1708427440372,-419.27218616,0.00020178,2]
[314563042,1708427440382,-155.10236756,0.00020178,2]
[314563044,1708427440393,-1517.39567223,0.00020179,2]
[314563047,1708427440402,-5000.0,0.0002018,2]
[314563048,1708427440411,-5000.0,0.0002018,2]
[314563051,1708427440420,-4093.52618315,0.0002018,2]
[314563052,1708427440430,-5000.0,0.0002018,2]
[314563054,1708427440439,-14926.54378379,0.0002018,2]
[314563056,1708427440449,-5000.0,0.0002018,2]
[314563058,1708427440458,-5000.0,0.0002018,2]
[314563060,1708427440468,-5000.0,0.0002018,2]
[314563062,1708427440477,-50000.0,0.0002018,2]
[314563064,1708427440486,-50000.0,0.0002018,2]
[314563066,1708427440495,-75254.27692939,0.0002018,2]
[314563068,1708427440504,-5000.0,0.00020182,2]
[314563070,1708427440514,-24255.65566318,0.00020185,2]
[314563072,1708427440523,-801.52735244,0.00020241,2]
[314563074,1708427440532,-801.52735244,0.00020401,2]
[314563076,1708427440541,-801.52735244,0.00020562,2]
[314563078,1708427440552,-276000.0,0.00020722,2]
[314563080,1708427440560,-17124.38081382,0.00020722,2]
[314563082,1708427440569,-801.52735244,0.00020722,2]
[314563084,1708427440579,-2825.42836741,0.00020722,2]
[314563086,1708427440588,-1239.75607249,0.0002081,2]
[314563088,1708427440597,-181.0279602,0.0002082,2]
[314563090,1708427440606,-764.99378759,0.0002082,2]
[314563092,1708427440615,-776.14825599,0.0002082,2]
[314563094,1708427440625,-309.87604958,0.0002082,2]
[314563096,1708427440634,-274.61037139,0.0002082,2]
[314563098,1708427440643,-1388.985169,0.00020821,2]
[314563100,1708427440653,-1301975.38396003,0.00020822,2]
[314563102,1708427440662,-500.0,0.00020822,2]
[314563104,1708427440671,-500.0,0.00020822,2]
[314563106,1708427440680,-500.0,0.00020822,2]
[314563108,1708427440690,-500.0,0.00020822,2]
[314563110,1708427440699,-590.34376888,0.00020822,2]
[314563112,1708427440708,-500.0,0.00020822,2]
[314563114,1708427440718,-500.0,0.00020822,2]
[314563116,1708427440727,-500.0,0.00020822,2]
[314563118,1708427440736,-243.91743412,0.00020822,2]
[314563120,1708427440746,-500.0,0.00020822,2]
[314563122,1708427440755,-500.0,0.00020822,2]
[314563124,1708427440765,-500.0,0.00020822,2]
[314563126,1708427440775,-500.0,0.00020822,2]
[314563128,1708427440784,-500.0,0.00020822,2]
[314563130,1708427440794,-500.0,0.00020822,2]
[314563132,1708427440803,-500.0,0.00020822,2]
[314563134,1708427440813,-250.0,0.00020822,2]
[314563136,1708427440822,-500.0,0.00020822,2]
[314563138,1708427440831,-500.0,0.00020822,2]
[314563140,1708427440841,-500.0,0.00020822,2]
[314563142,1708427440850,-500.0,0.00020822,2]
[314563144,1708427440859,-500.0,0.00020822,2]
[314563146,1708427440868,-500.0,0.00020822,2]
[314563148,1708427440877,-500.0,0.00020822,2]
[314563150,1708427440887,-365.27313521,0.00020822,2]
[314563152,1708427440897,-500.0,0.00020822,2]
[314563154,1708427440906,-556.54562937,0.00020822,2]
[314563156,1708427440915,-500.0,0.00020822,2]
[314563158,1708427440924,-500.0,0.00020822,2]
[314563160,1708427440934,-500.0,0.00020822,2]
[314563162,1708427440943,-500.0,0.00020822,2]
[314563164,1708427440953,-500.0,0.00020822,2]
[314563166,1708427440962,-500.0,0.00020822,2]
[314563168,1708427440972,-500.0,0.00020822,2]
[314563170,1708427440982,-500.0,0.00020822,2]
[314563172,1708427440991,-500.0,0.00020822,2]
[314563174,1708427441001,-500.0,0.00020822,2]
[314563176,1708427441010,-500.0,0.00020822,2]
[314563178,1708427441021,-500.0,0.00020822,2]
[314563180,1708427441031,-500.0,0.00020822,2]
[314563182,1708427441040,-500.0,0.00020822,2]
[314563184,1708427441052,-500.0,0.00020822,2]
[314563186,1708427441062,-500.0,0.00020822,2]
[314563188,1708427441071,-500.0,0.00020822,2]
[314563190,1708427441081,-500.0,0.00020822,2]
[314563192,1708427441091,-500.0,0.00020822,2]
[314563195,1708427441101,-500.0,0.00020822,2]
[314563196,1708427441110,-500.0,0.00020822,2]
[314563199,1708427441121,-500.0,0.00020822,2]
[314563201,1708427441130,-500.0,0.00020822,2]